fUST/lending_fUST_20240208
["ID","MTS","AMOUNT","RATE_DAILY","PERIOD"]
[313409870,1707325833443,-578.73,0.00027397,3]
[313409871,1707325833453,-984.1862097,0.00027397,2]
[313409872,1707325833462,-1059.45,0.0002749,3]
[313409873,1707325833472,-2020.29,0.0002749,3]
[313409874,1707325833482,-1683.58,0.0002749,3]
[313409875,1707325833492,-17998.79446693,0.000275,2]
[313409876,1707325833501,-600.0,0.000275,2]
[313409877,1707325833510,-511.89299392,0.000275,2]
[313409878,1707325833519,-178.08854988,0.00027615,2]
[313409879,1707325833529,-1082.56,0.00027669,3]
[313409880,1707325833538,-390.0,0.00027669,3]
[313409881,1707325833548,-386.42188399,0.0002767,2]
[313409882,1707325833557,-500.0,0.0002767,2]
[313409883,1707325833566,-385.86122992,0.0002767,2]
[313409884,1707325833576,-225.13155146,0.0002767,2]
[313409885,1707325833585,-500.0,0.0002767,2]
[313409886,1707325833594,-533.33446823,0.0002767,2]
[313409887,1707325833603,-500.0,0.0002767,2]
[313409888,1707325833613,-500.0,0.0002767,2]
[313409889,1707325833622,-500.0,0.0002767,2]
[313409890,1707325833631,-500.0,0.0002767,2]
[313409891,1707325833641,-500.0,0.0002767,2]
[313409892,1707325833650,-500.0,0.0002767,2]
[313409893,1707325833659,-500.0,0.0002767,2]
[313409894,1707325833668,-500.0,0.0002767,2]
[313409895,1707325833677,-500.0,0.0002767,2]
[313409896,1707325833687,-500.0,0.0002767,2]
[313409897,1707325833696,-500.0,0.0002767,2]
[313409898,1707325833705,-500.0,0.0002767,2]
[313409899,1707325833714,-500.0,0.0002767,2]
[313409900,1707325833724,-500.0,0.0002767,2]
[313409901,1707325833734,-500.0,0.0002767,2]
[313409902,1707325833743,-433.09594563,0.0002767,2]
[313409903,1707325833752,-500.0,0.0002767,2]
[313409904,1707325833761,-500.0,0.0002767,2]
[313409905,1707325833770,-500.0,0.0002767,2]
[313409906,1707325833779,-500.0,0.0002767,3]
[313409907,1707325833788,-500.0,0.00027671,3]
[313409908,1707325833797,-871.67,0.00027671,3]
[313409909,1707325833806,-1190.27,0.00027671,3]
[313409910,1707325833815,-500.0,0.00027671,3]
[313409911,1707325833824,-500.0,0.00027671,3]
[313409912,1707325833833,-500.0,0.00027671,3]
[313409913,1707325833843,-827.44,0.00027671,3]
[313409914,1707325833852,-500.0,0.00027671,3]
[313409915,1707325833860,-500.0,0.00027671,3]
[313409916,1707325833870,-868.25,0.00027671,3]
[313409917,1707325833879,-515.55,0.00027671,3]
[313409918,1707325833888,-1000.0,0.00027671,2]
[313409919,1707325833897,-500.0,0.00027671,3]
[313409920,1707325833906,-500.0,0.00027671,3]
[313409921,1707325833915,-500.0,0.00027671,3]
[313409922,1707325833924,-1958.22,0.00027671,3]
[313409923,1707325833934,-2143.96,0.00027671,3]
[313409924,1707325833946,-576.47,0.00027671,3]
[313409925,1707325833955,-500.0,0.00027671,3]
[313409926,1707325833964,-2155.05,0.00027671,3]
[313409927,1707325833973,-500.0,0.00027671,3]
[313409928,1707325833983,-588.19371844,0.00027671,3]
[313409929,1707325833994,-4357.07,0.00027671,3]
[313409930,1707325834003,-500.0,0.00027671,3]
[313409931,1707325834015,-500.0,0.00027671,3]
[313409932,1707325834027,-3649.44,0.00027671,3]
[313409933,1707325834037,-633.61,0.00027671,3]
[313409934,1707325834046,-500.0,0.00027671,2]
[313409935,1707325834056,-500.0,0.00027671,3]
[313409936,1707325834066,-500.0,0.00027671,3]
[313409937,1707325834075,-500.0,0.00027671,3]
[313409938,1707325834084,-2445.6,0.00027671,3]
[313409939,1707325834093,-1010.45,0.00027671,3]
[313409940,1707325834103,-500.0,0.00027671,3]
[313409941,1707325834113,-1131.53,0.00027671,3]
[313409942,1707325834122,-500.0,0.00027671,3]
[313409943,1707325834132,-500.0,0.00027671,3]
[313409944,1707325834142,-500.0,0.00027671,3]
[313409945,1707325834152,-578.73,0.00027671,3]
[313409946,1707325834162,-1082.56,0.00027943,3]
[313409947,1707325834171,-414.94501911,0.00027944,3]
[313409948,1707325834181,-500.0,0.00027945,3]
[313409949,1707325834191,-871.67,0.00027945,3]
[313409950,1707325834200,-1190.27,0.00027945,3]
[313409951,1707325834210,-500.0,0.00027945,3]
[313409952,1707325834220,-500.0,0.00027945,3]
[313409953,1707325834229,-500.0,0.00027945,3]
[313409954,1707325834242,-827.44,0.00027945,3]
[313409955,1707325834252,-500.0,0.00027945,3]
[313409956,1707325834261,-500.0,0.00027945,3]
[313409957,1707325834270,-868.25,0.00027945,3]
[313409958,1707325834279,-515.55,0.00027945,3]
[313409959,1707325834288,-1000.0,0.00027945,2]
[313409960,1707325834297,-500.0,0.00027945,3]
[313409961,1707325834306,-500.0,0.00027945,3]
[313409962,1707325834315,-500.0,0.00027945,3]
[313409963,1707325834324,-1958.22,0.00027945,3]
[313409964,1707325834334,-2143.96,0.00027945,3]
[313409965,1707325834427,-576.47,0.00027945,3]
[313409966,1707325834437,-500.0,0.00027945,3]
[313409967,1707325834447,-2155.05,0.00027945,3]
[313409968,1707325834456,-1258.66919797,0.00027945,3]
[313409969,1707325834701,-9.64233,0.00027945,3]
[313410057,1707325838720,-3088.75847203,0.00027945,3]
[313410059,1707325838729,-500.0,0.00027945,3]
[313410061,1707325838741,-3649.44,0.00027945,3]
[313410062,1707325838751,-633.61,0.00027945,3]
[313410064,1707325838760,-500.0,0.00027945,3]
[313410066,1707325838769,-2445.6,0.00027945,3]
[313410068,1707325838779,-1010.45,0.00027945,3]
[313410070,1707325838789,-500.0,0.00027945,3]
[313410072,1707325838798,-1131.53,0.00027945,3]
[313410075,1707325838808,-500.0,0.00027945,3]
[313410076,1707325838819,-500.0,0.00027945,3]
[313410077,1707325838828,-500.0,0.00027945,3]
[313410078,1707325838838,-578.73,0.00027945,3]
[313410079,1707325838848,-1402.98,0.0002799,3]
[313410080,1707325838858,-571.20254843,0.00027999,2]
[313410081,1707325838868,-500.0,0.00027999,2]
[313410082,1707325838879,-548.12177174,0.00027999,2]
[313410083,1707325838889,-1716.49476713,0.00028,2]
[313410084,1707325838898,-51930.88733907,0.00028,2]
[313410085,1707325838907,-154.93802479,0.00028,2]
[313410086,1707325838916,-155.27339162,0.00028052,2]
[313410087,1707325838925,-1082.56,0.00028217,3]
[313410088,1707325838935,-576.67782488,0.00028219,3]
[313410089,1707325838947,-871.67,0.00028219,3]
[313410090,1707325838956,-1190.27,0.00028219,3]
[313410091,1707325838965,-500.0,0.00028219,3]
[313410092,1707325838975,-500.0,0.00028219,3]
[313410093,1707325838987,-500.0,0.00028219,3]
[313410094,1707325838997,-827.44,0.00028219,3]
[313410095,1707325839006,-500.0,0.00028219,3]
[313410096,1707325839015,-500.0,0.00028219,3]
[313410097,1707325839026,-868.25,0.00028219,3]
[313410098,1707325839035,-515.55,0.00028219,3]
[313410099,1707325839044,-500.0,0.00028219,3]
[313410100,1707325839054,-500.0,0.00028219,3]
[313410101,1707325839063,-500.0,0.00028219,3]
[313410102,1707325839072,-1958.22,0.00028219,3]
[313410103,1707325839081,-2143.96,0.00028219,3]
[313410104,1707325839090,-576.47,0.00028219,3]
[313410105,1707325839099,-500.0,0.00028219,3]
[313410106,1707325839108,-2155.05,0.00028219,3]
[313410107,1707325839117,-4357.07,0.00028219,3]
[313410108,1707325839126,-500.0,0.00028219,3]
[313410109,1707325839135,-3649.44,0.00028219,3]
[313410110,1707325839145,-633.61,0.00028219,3]
[313410111,1707325839153,-500.0,0.00028219,3]
[313410112,1707325839162,-2445.6,0.00028219,3]
[313410113,1707325839171,-1010.45,0.00028219,3]
[313410114,1707325839180,-500.0,0.00028219,3]
[313410115,1707325839189,-1131.53,0.00028219,3]
[313410116,1707325839198,-500.0,0.00028219,3]
[313410117,1707325839207,-500.0,0.00028219,3]
[313410118,1707325839216,-500.0,0.00028219,3]
[313410119,1707325839225,-578.73,0.00028219,3]
[313410120,1707325839235,-178.08854988,0.00028393,2]
[313410121,1707325839244,-1082.56,0.00028491,3]
[313410122,1707325839253,-871.67,0.00028493,3]
[313410123,1707325839262,-1190.27,0.00028493,3]
[313410124,1707325839270,-383.84406897,0.00028493,3]
[313410125,1707325839279,-500.0,0.00028493,3]
[313410126,1707325839289,-500.0,0.00028493,3]
[313410127,1707325839298,-827.44,0.00028493,3]
[313410128,1707325839307,-500.0,0.00028493,3]
[313410129,1707325839316,-500.0,0.00028493,3]
[313410130,1707325839325,-868.25,0.00028493,3]
[313410131,1707325839334,-515.55,0.00028493,3]
[313410132,1707325839343,-500.0,0.00028493,3]
[313410133,1707325839353,-500.0,0.00028493,3]
[313410134,1707325839363,-500.0,0.00028493,3]
[313410135,1707325839372,-1958.22,0.00028493,3]
[313410136,1707325839381,-2143.96,0.00028493,3]
[313410137,1707325839390,-576.47,0.00028493,3]
[313410138,1707325839399,-500.0,0.00028493,3]
[313410139,1707325839408,-2155.05,0.00028493,3]
[313410140,1707325839417,-4357.07,0.00028493,3]
[313410141,1707325839426,-500.0,0.00028493,3]
[313410142,1707325839435,-3649.44,0.00028493,3]
[313410143,1707325839444,-633.61,0.00028493,3]
[313410144,1707325839454,-500.0,0.00028493,3]
[313410145,1707325839463,-2445.6,0.00028493,3]
[313410146,1707325839472,-1010.45,0.00028493,3]
[313410147,1707325839481,-500.0,0.00028493,3]
[313410148,1707325839494,-1131.53,0.00028493,3]
[313410149,1707325839503,-500.0,0.00028493,3]
[313410150,1707325839513,-500.0,0.00028493,3]
[313410151,1707325839522,-500.0,0.00028493,3]
[313410152,1707325839531,-578.73,0.00028493,3]
[313410153,1707325839541,-1082.56,0.00028765,3]
[313410154,1707325839551,-871.67,0.00028767,3]
[313410155,1707325839561,-1190.27,0.00028767,3]
[313410156,1707325839571,-500.0,0.00028767,3]
[313410157,1707325839581,-500.0,0.00028767,3]
[313410158,1707325839590,-827.44,0.00028767,3]
[313410159,1707325839599,-500.0,0.00028767,3]
[313410160,1707325839608,-500.0,0.00028767,3]
[313410161,1707325839618,-868.25,0.00028767,3]
[313410162,1707325839628,-515.55,0.00028767,3]
[313410163,1707325839637,-500.0,0.00028767,3]
[313410164,1707325839646,-500.0,0.00028767,3]
[313410165,1707325839655,-500.0,0.00028767,3]
[313410166,1707325839665,-1958.22,0.00028767,3]
[313410167,1707325839674,-2143.96,0.00028767,3]
[313410168,1707325839683,-576.47,0.00028767,3]
[313410169,1707325839693,-500.0,0.00028767,3]
[313410170,1707325839702,-2155.05,0.00028767,3]
[313410171,1707325839711,-4357.07,0.00028767,3]
[313410172,1707325839720,-500.0,0.00028767,3]
[313410173,1707325839729,-3649.44,0.00028767,3]
[313410174,1707325839739,-633.61,0.00028767,3]
[313410175,1707325839748,-500.0,0.00028767,3]
[313410176,1707325839758,-2445.6,0.00028767,3]
[313410177,1707325839766,-1010.45,0.00028767,3]
[313410178,1707325839776,-500.0,0.00028767,3]
[313410179,1707325839785,-1131.53,0.00028767,3]
[313410180,1707325839795,-500.0,0.00028767,3]
[313410181,1707325839814,-500.0,0.00028767,3]
[313410182,1707325839827,-578.73,0.00028767,3]
[313410183,1707325839837,-200.67,0.000289,4]
[313410184,1707325839847,-623.69645253,0.000289,2]
[313410185,1707325839857,-459.60686937,0.00029,3]
[313410186,1707325839866,-284.09442988,0.00029,2]
[313410187,1707325839876,-178.20188501,0.00029,2]
[313410188,1707325839885,-183.31759979,0.00029,10]
[313410189,1707325839895,-150.0,0.00029,2]
[313410190,1707325839905,-873.60642443,0.00029,4]
[313410191,1707325839914,-1777.0,0.00029,4]
[313410192,1707325839923,-1030.20576942,0.00029039,2]
[313410193,1707325839934,-1082.56,0.00029039,3]
[313410194,1707325839946,-15000.0,0.0002904,2]
[313410195,1707325839956,-871.67,0.00029041,3]
[313410196,1707325839968,-1190.27,0.00029041,3]
[313410197,1707325839978,-500.0,0.00029041,3]
[313410198,1707325839989,-500.0,0.00029041,3]
[313410199,1707325839999,-827.44,0.00029041,3]
[313410200,1707325840009,-500.0,0.00029041,3]
[313410201,1707325840020,-500.0,0.00029041,3]
[313410202,1707325840031,-868.25,0.00029041,3]
[313410203,1707325840041,-515.55,0.00029041,3]
[313410204,1707325840051,-500.0,0.00029041,3]
[313410205,1707325840061,-500.0,0.00029041,3]
[313410206,1707325840071,-500.0,0.00029041,3]
[313410207,1707325840080,-1958.22,0.00029041,3]
[313410208,1707325840090,-2143.96,0.00029041,3]
[313410209,1707325840100,-576.47,0.00029041,3]
[313410210,1707325840109,-500.0,0.00029041,3]
[313410211,1707325840120,-2155.05,0.00029041,3]
[313410212,1707325840129,-4357.07,0.00029041,3]
[313410213,1707325840139,-500.0,0.00029041,3]
[313410214,1707325840150,-3649.44,0.00029041,3]
[313410215,1707325840160,-633.61,0.00029041,3]
[313410216,1707325840169,-500.0,0.00029041,3]
[313410217,1707325840179,-2445.6,0.00029041,3]
[313410218,1707325840188,-1010.45,0.00029041,3]
[313410219,1707325840198,-500.0,0.00029041,3]
[313410220,1707325840207,-1131.53,0.00029041,3]
[313410221,1707325840216,-500.0,0.00029041,3]
[313410222,1707325840226,-500.0,0.00029041,3]
[313410223,1707325840236,-578.73,0.00029041,3]
[313410224,1707325840246,-1082.56,0.00029313,3]
[313410225,1707325840255,-871.67,0.00029315,3]
[313410226,1707325840265,-1190.27,0.00029315,3]
[313410227,1707325840274,-500.0,0.00029315,3]
[313410228,1707325840283,-500.0,0.00029315,3]
[313410229,1707325840292,-827.44,0.00029315,3]
[313410230,1707325840302,-500.0,0.00029315,3]
[313410231,1707325840312,-500.0,0.00029315,3]
[313410232,1707325840322,-868.25,0.00029315,3]
[313410233,1707325840332,-515.55,0.00029315,3]
[313410234,1707325840342,-500.0,0.00029315,3]
[313410235,1707325840352,-500.0,0.00029315,3]
[313410236,1707325840470,-500.0,0.00029315,3]
[313410237,1707325840479,-1958.22,0.00029315,3]
[313410238,1707325840490,-2143.96,0.00029315,3]
[313410239,1707325840499,-576.47,0.00029315,3]
[313410240,1707325840508,-500.0,0.00029315,3]
[313410241,1707325840518,-2155.05,0.00029315,3]
[313410242,1707325840527,-4357.07,0.00029315,3]
[313410243,1707325840537,-500.0,0.00029315,3]
[313410244,1707325840546,-3649.44,0.00029315,3]
[313410245,1707325840556,-633.61,0.00029315,3]
[313410246,1707325840566,-375.36,0.00029315,3]
[313410247,1707325840575,-2445.6,0.00029315,3]
[313410248,1707325840585,-1010.45,0.00029315,3]
[313410249,1707325840594,-1131.53,0.00029315,3]
[313410250,1707325840604,-500.0,0.00029315,3]
[313410251,1707325840613,-500.0,0.00029315,3]
[313410252,1707325840622,-578.73,0.00029315,3]
[313410253,1707325840632,-153.0,0.00029315,2]
[313410254,1707325840641,-153.0,0.00029315,2]
[313410255,1707325840651,-199.9099361,0.00029315,2]
[313410256,1707325840660,-153.0,0.00029315,2]
[313410257,1707325840669,-199.9099361,0.00029315,2]
[313410258,1707325840678,-153.0,0.00029315,2]
[313410259,1707325840687,-153.0,0.00029315,2]
[313410260,1707325840697,-199.9099361,0.00029315,2]
[313410261,1707325840707,-153.0,0.00029315,2]
[313410262,1707325840716,-199.9099361,0.00029315,2]
[313410263,1707325840725,-153.0,0.00029315,2]
[313410265,1707325840735,-153.0,0.00029315,2]
[313410266,1707325840745,-199.9099361,0.00029315,2]
[313410269,1707325840754,-199.9099361,0.00029315,2]
[313410270,1707325840765,-199.9099361,0.00029315,2]
[313410271,1707325840774,-153.0,0.00029315,2]
[313410272,1707325840783,-199.9099361,0.00029315,2]
[313410273,1707325840793,-199.9099361,0.00029315,2]
[313410274,1707325840804,-153.0,0.00029315,2]
[313410275,1707325840813,-1082.56,0.00029587,3]
[313410276,1707325840822,-871.67,0.00029589,3]
[313410277,1707325840831,-1190.27,0.00029589,3]
[313410278,1707325840840,-500.0,0.00029589,3]
[313410279,1707325840849,-500.0,0.00029589,3]
[313410281,1707325840859,-827.44,0.00029589,3]
[313410282,1707325840868,-500.0,0.00029589,3]
[313410283,1707325840877,-500.0,0.00029589,3]
[313410284,1707325840886,-868.25,0.00029589,3]
[313410285,1707325840895,-515.55,0.00029589,3]
[313410286,1707325840904,-500.0,0.00029589,3]
[313410288,1707325840913,-500.0,0.00029589,3]
[313410289,1707325840923,-500.0,0.00029589,3]
[313410291,1707325840935,-1958.22,0.00029589,3]
[313410293,1707325840945,-2143.96,0.00029589,3]
[313410295,1707325840955,-576.47,0.00029589,3]
[313410296,1707325840965,-500.0,0.00029589,3]
[313410298,1707325840976,-2155.05,0.00029589,3]
[313410300,1707325840987,-4357.07,0.00029589,3]
[313410302,1707325840997,-500.0,0.00029589,3]
[313410303,1707325841008,-3649.44,0.00029589,3]
[313410304,1707325841019,-633.61,0.00029589,3]
[313410305,1707325841029,-2445.6,0.00029589,3]
[313410306,1707325841038,-1010.45,0.00029589,3]
[313410307,1707325841047,-1131.53,0.00029589,3]
[313410308,1707325841056,-500.0,0.00029589,3]
[313410309,1707325841066,-409.72,0.00029589,3]
[313410310,1707325841075,-578.73,0.00029589,3]
[313410311,1707325841084,-280.0,0.00029594,15]
[313410312,1707325841094,-26868.77399123,0.00029763,2]
[313410313,1707325841104,-1082.56,0.00029861,3]
[313410314,1707325841113,-871.67,0.00029863,3]
[313410315,1707325841123,-1190.27,0.00029863,3]
[313410316,1707325841132,-500.0,0.00029863,3]
[313410317,1707325841142,-626.79334658,0.00029863,3]
[313410318,1707325841151,-827.44,0.00029863,3]
[313410319,1707325841161,-500.0,0.00029863,3]
[313410320,1707325841171,-500.0,0.00029863,3]
[313410321,1707325841180,-868.25,0.00029863,3]
[313410322,1707325841190,-515.55,0.00029863,3]
[313410323,1707325841199,-500.0,0.00029863,3]
[313410324,1707325841209,-235.14194261,0.00029863,3]
[313410325,1707325841219,-221.25860115,0.00029863,3]
[313410326,1707325841227,-1958.22,0.00029863,3]
[313410327,1707325841239,-2143.96,0.00029863,3]
[313410328,1707325841248,-576.47,0.00029863,3]
[313410329,1707325841257,-184.76274814,0.00029863,3]
[313410330,1707325841266,-2155.05,0.00029863,3]
[313410331,1707325841275,-4357.07,0.00029863,3]
[313410332,1707325841284,-500.0,0.00029863,3]
[313410333,1707325841294,-3649.44,0.00029863,3]
[313410334,1707325841303,-633.61,0.00029863,3]
[313410335,1707325841312,-2445.6,0.00029863,3]
[313410336,1707325841321,-1010.45,0.00029863,3]
[313410337,1707325841330,-1131.53,0.00029863,3]
[313410338,1707325841339,-500.0,0.00029863,3]
[313410339,1707325841348,-578.73,0.00029863,3]
[313410340,1707325841358,-8596.22172122,0.0003,2]
[313410341,1707325841368,-349.80791941,0.0003,4]
[313410342,1707325841377,-154.93802479,0.0003,4]
[313410343,1707325841386,-2986.5693328,0.0003,4]
[313410344,1707325841396,-503.98514352,0.0003,14]
[313410345,1707325841405,-462.57342587,0.0003,5]
[313410346,1707325841414,-326.14272914,0.0003,7]
[313410347,1707325841423,-362.72371433,0.0003,7]
[313410348,1707325841432,-1182.87652198,0.0003,4]
[313410349,1707325841442,-158.37639189,0.0003,4]
[313410350,1707325841451,-201.30941131,0.0003,4]
[313410351,1707325841460,-830.10018258,0.0003,5]
[313410352,1707325841469,-468.57112524,0.0003,5]
[313410353,1707325841479,-263.0,0.0003,2]
[313410354,1707325841489,-1082.56,0.00030135,3]
[313410355,1707325841498,-871.67,0.00030136,3]
[313410356,1707325841507,-1190.27,0.00030136,3]
[313410357,1707325841516,-500.0,0.00030136,3]
[313410358,1707325841525,-827.44,0.00030136,3]
[313410359,1707325841534,-500.0,0.00030136,3]
[313410360,1707325841542,-500.0,0.00030136,3]
[313410361,1707325841551,-868.25,0.00030136,3]
[313410362,1707325841560,-515.55,0.00030136,3]
[313410363,1707325841569,-500.0,0.00030136,3]
[313410364,1707325841578,-1958.22,0.00030136,3]
[313410365,1707325841587,-2143.96,0.00030136,3]
[313410366,1707325841596,-576.47,0.00030136,3]
[313410367,1707325841605,-2155.05,0.00030136,3]
[313410369,1707325841614,-4357.07,0.00030136,3]
[313410371,1707325841623,-500.0,0.00030136,3]
[313410372,1707325841632,-3649.44,0.00030136,3]
[313410373,1707325841641,-633.61,0.00030136,3]
[313410375,1707325841650,-2445.6,0.00030136,3]
[313410377,1707325841659,-1010.45,0.00030136,3]
[313410379,1707325841668,-1131.53,0.00030136,3]
[313410381,1707325841677,-500.0,0.00030136,3]
[313410383,1707325841686,-578.73,0.00030136,3]
[313410385,1707325841696,-153.0,0.00030137,2]
[313410387,1707325841705,-30403.59225346,0.0003031,2]
[313410389,1707325841714,-1082.56,0.00030409,3]
[313410391,1707325841723,-871.67,0.0003041,3]
[313410392,1707325841732,-1190.27,0.0003041,3]
[313410394,1707325841743,-500.0,0.0003041,3]
[313410396,1707325841752,-827.44,0.0003041,3]
[313410398,1707325841761,-414.57257262,0.0003041,3]
[313410400,1707325841770,-500.0,0.0003041,3]
[313410402,1707325841780,-868.25,0.0003041,3]
[313410404,1707325841789,-515.55,0.0003041,3]
[313410406,1707325841798,-500.0,0.0003041,3]
[313410408,1707325841807,-1958.22,0.0003041,3]
[313410410,1707325841816,-2143.96,0.0003041,3]
[313410412,1707325841825,-576.47,0.0003041,3]
[313410414,1707325841834,-2155.05,0.0003041,3]
[313410416,1707325841843,-4357.07,0.0003041,3]
[313410418,1707325841852,-500.0,0.0003041,3]
[313410420,1707325841861,-3649.44,0.0003041,3]
[313410422,1707325841870,-633.61,0.0003041,3]
[313410424,1707325841879,-2445.6,0.0003041,3]
[313410426,1707325841888,-1010.45,0.0003041,3]
[313410428,1707325841898,-1131.53,0.0003041,3]
[313410430,1707325841907,-500.0,0.0003041,3]
[313410432,1707325841916,-578.73,0.0003041,3]
[313410434,1707325841925,-1082.56,0.00030683,3]
[313410436,1707325841935,-871.67,0.00030684,3]
[313410437,1707325841945,-1190.27,0.00030684,3]
[313410441,1707325841964,-500.0,0.00030684,3]
[313410443,1707325841974,-827.44,0.00030684,3]
[313410445,1707325841983,-500.0,0.00030684,3]
[313410447,1707325841995,-868.25,0.00030684,3]
[313410449,1707325842006,-515.55,0.00030684,3]
[313410451,1707325842015,-500.0,0.00030684,3]
[313410452,1707325842027,-1958.22,0.00030684,3]
[313410454,1707325842037,-2143.96,0.00030684,3]
[313410457,1707325842047,-576.47,0.00030684,3]
[313410458,1707325842056,-2155.05,0.00030684,3]
[313410460,1707325842065,-4357.07,0.00030684,3]
[313410463,1707325842075,-500.0,0.00030684,3]
[313410465,1707325842085,-3649.44,0.00030684,3]
[313410467,1707325842095,-633.61,0.00030684,3]
[313410469,1707325842107,-2445.6,0.00030684,3]
[313410471,1707325842117,-1010.45,0.00030684,3]
[313410473,1707325842127,-1131.53,0.00030684,3]
[313410474,1707325842137,-500.0,0.00030684,3]
[313410476,1707325842146,-578.73,0.00030684,3]
[313410478,1707325842155,-200.0,0.0003069,2]
[313410480,1707325842164,-200.0,0.0003069,2]
[313410482,1707325842174,-203.51049,0.0003069,2]
[313410484,1707325842183,-1082.56,0.00030957,3]
[313410486,1707325842192,-871.67,0.00030958,3]
[313410488,1707325842201,-953.44821592,0.00030958,3]
[313410489,1707325842222,-236.82178408,0.00030958,3]
[313410490,1707325842231,-500.0,0.00030958,3]
[313410491,1707325842242,-827.44,0.00030958,3]
[313410492,1707325842251,-480.64,0.00030958,3]
[313410493,1707325842260,-868.25,0.00030958,3]
[313410494,1707325842270,-515.55,0.00030958,3]
[313410495,1707325842279,-500.0,0.00030958,3]
[313410496,1707325842288,-1958.22,0.00030958,3]
[313410497,1707325842297,-2143.96,0.00030958,3]
[313410498,1707325842306,-576.47,0.00030958,3]
[313410499,1707325842316,-2155.05,0.00030958,3]
[313410500,1707325842325,-4357.07,0.00030958,3]
[313410501,1707325842334,-500.0,0.00030958,3]
[313410502,1707325842343,-3649.44,0.00030958,3]
[313410503,1707325842353,-633.61,0.00030958,3]
[313410504,1707325842363,-2445.6,0.00030958,3]
[313410506,1707325842372,-1010.45,0.00030958,3]
[313410508,1707325842380,-1131.53,0.00030958,3]
[313410510,1707325842390,-500.0,0.00030958,3]
[313410512,1707325842399,-578.73,0.00030958,3]
[313410514,1707325842408,-54375.51354712,0.00031,4]
[313410516,1707325842420,-989.30131082,0.00031,4]
[313410537,1707325842602,-2296.99322573,0.00031,4]
[313410539,1707325842614,-60885.75421721,0.00031,4]
[313410676,1707325843746,-199.1089141,0.00029315,2]
[313410678,1707325843756,-591.80043492,0.00030409,2]
[313410680,1707325843765,-646.53719014,0.00030409,2]
[313410682,1707325843774,-288.11944447,0.00030409,2]
[313410684,1707325843783,-500.0,0.00030409,2]
[313410686,1707325843792,-500.0,0.00030409,2]
[313410688,1707325843801,-500.0,0.00030409,2]
[313410690,1707325843810,-325.58561071,0.00030409,2]
[313410692,1707325843819,-5442.84118649,0.00031,4]
[313410694,1707325843833,-4859.84299656,0.00031,4]
[313411862,1707326950113,-5000.0,0.00020374,4]
[313411863,1707326950134,-159.7724831,0.0002058,2]
[313411864,1707326950155,-154.93802479,0.00021078,4]
[313411865,1707326950176,-161.4945607,0.00021078,2]
[313411866,1707326950196,-167.15951964,0.00021079,2]
[313411867,1707326950217,-243.81886523,0.00021079,2]
[313411868,1707326950237,-154.93802479,0.0002108,2]
[313411869,1707326950256,-154.93802479,0.0002108,2]
[313411870,1707326950277,-154.93802479,0.0002108,2]
[313411871,1707326950296,-20929.45735728,0.00021084,2]
[313411872,1707326950316,-1941.60636958,0.00021084,2]
[313411873,1707326950336,-10454.4957541,0.00021085,2]
[313411874,1707326950358,-2988.6503122,0.00021681,2]